Workbook

Sheet 考试成绩统计表
A1: 务川县林业局招聘森林草原火灾应急扑救队员体能测试成绩汇总表
A2: 姓名 | B2: 身份证号码 | C2: 准考证号 | D2: 必考1500 | F2: 测试项目3选2 | L2: 总分 | M2: 排名
D3: 测试时间 | E3: 成绩（分） | F3: 俯卧撑（个） | G3: 成绩（分） | H3: 仰卧起坐（个） | I3: 成绩（分） | J3: 跳绳（个） | K3: 成绩（分）
A4: 冉雄其 | B4: 522126199807103515 | C4: 2024071229 | D4: 5分23秒 | E4: 100 | F4: 45 | G4: 100 | H4: 53 | I4: 100 | L4: =E4+G4+I4+K4 -> 300 | M4: 1（进入面试）
A5: 肖勤羽 | B5: 522126200009151534 | C5: 2024071222 | D5: 5分24秒 | E5: 100 | F5: 42 | G5: 100 | J5: 146 | K5: 86 | L5: 286 | M5: 2（进入面试）
A6: 申云号 | B6: 522126199910223515 | C6: 2024071242 | D6: 5分55秒 | E6: 83.4 | F6: 49 | G6: 100 | J6: 167 | K6: 100 | L6: 283.4 | M6: 3（进入面试）
A7: 田小航 | B7: 522126199912304052 | C7: 2024071207 | D7: 6分01秒 | E7: 80 | F7: 38 | G7: 96 | J7: 175 | K7: 100 | L7: 276 | M7: 4（进入面试）
A8: 张普 | B8: 522126199506193019 | C8: 2024071246 | D8: 5分56秒 | E8: 82.7 | F8: 38 | G8: 96 | H8: 45 | I8: 90 | L8: 268.7 | M8: 5（进入面试）
A9: 邹林 | B9: 522126199609013519 | C9: 2024071231 | D9: 6分00秒 | E9: 80 | F9: 41 | G9: 100 | H9: 43 | I9: 86 | L9: 266 | M9: 6（进入面试）
A10: 张慧波 | B10: 522126199907260032 | C10: 2024071214 | D10: 5分56秒 | E10: 82.7 | F10: 49 | G10: 100 | H10: 40 | I10: 80 | L10: 262.7 | M10: 7
A11: 吴旭东 | B11: 522126199912212019 | C11: 2024071215 | D11: 6分29秒 | E11: 60.7 | F11: 38 | G11: 96 | J11: 172 | K11: 100 | L11: 256.7 | M11: 8
A12: 邹佳佳 | B12: 522126199910226011 | C12: 2024071219 | D12: 6分15秒 | E12: 70 | F12: 34 | G12: 88 | H12: 49 | I12: 98 | L12: 256 | M12: 9
A13: 唐旭飞 | B13: 522126199811038015 | C13: 2024071209 | D13: 6分19秒 | E13: 67.4 | F13: 40 | G13: 100 | J13: 145 | K13: 85 | L13: 252.4 | M13: 10
A14: 申和勇 | B14: 522126199812160016 | C14: 2024071211 | D14: 6分27秒 | E14: 62 | F14: 33 | G14: 86 | J14: 165 | K14: 100 | L14: 248 | M14: 11
A15: 申岚洋 | B15: 522126199706283510 | C15: 2024071201 | D15: 6分22秒 | E15: 65.4 | F15: 33 | G15: 86 | J15: 153 | K15: 93 | L15: 244.4 | M15: 12
A16: 李小东 | B16: 522126200204231011 | C16: 2024071204 | D16: 6分05秒 | E16: 76.7 | F16: 31 | G16: 82 | H16: 36 | I16: 72 | L16: 230.7 | M16: 13
A17: 邓亚东 | B17: 522126199711064014 | C17: 2024071230 | D17: 弃考 | F17: 40 | G17: 100 | J17: 143 | K17: 83 | L17: 183 | M17: 14
A18: 田莽江 | B18: 522126200011027014 | C18: 2024071239 | D18: 7分03秒 | E18: 不合格 | F18: 43 | G18: 100 | J18: 143 | K18: 83 | L18: =K18+G18 -> 183 | M18: 15
A19: 董翼 | B19: 522126199605071017 | C19: 2024071227 | D19: 弃考 | E19: 弃考 | F19: 42 | G19: 100 | H19: 40 | I19: 80 | K19: 弃考 | L19: =G19+I19 -> 180 | M19: 16
A20: 骆旭东 | B20: 522126199401207517 | C20: 2024071224 | D20: 6分57秒 | E20: 不合格 | F20: 42 | G20: 100 | J20: 139 | K20: 79 | L20: =G20+K20 -> 179 | M20: 17
A21: 佘贵 | B21: 522126199609073538 | C21: 2024071205 | D21: 8分08秒 | E21: 不合格 | F21: 41 | G21: 100 | H21: 39 | I21: 78 | L21: 178 | M21: 18
A22: 吴松 | B22: 522126199908012014 | C22: 2024071232 | D22: 弃考 | F22: 21 | G22: 62 | J22: 115 | K22: 不合格 | L22: =J22+G22 -> 177 | M22: 19
A23: 邹恐龙 | B23: 522126200002036015 | C23: 2024071220 | D23: 7分13秒 | E23: 不合格 | F23: 41 | G23: 100 | H23: 38 | I23: 76 | L23: 176 | M23: 20
A24: 申杰 | B24: 52212620001201301x | C24: 2024071226 | D24: 7分14秒 | E24: 不合格 | F24: 34 | G24: 88 | H24: 43 | I24: 86 | L24: 174 | M24: 21
A25: 陈伟 | B25: 522126199908105536 | C25: 2024071251 | D25: 弃考 | F25: 41 | G25: 100 | H25: 36 | I25: 72 | K25: 弃考 | L25: =I25+G25 -> 172 | M25: 22
A26: 王庆峰 | B26: 522126199306140115 | C26: 2024071223 | D26: 7分49秒 | E26: 不合格 | F26: 25 | G26: 70 | J26: 158 | K26: 98 | L26: =G26+K26 -> 168 | M26: 23
A27: 刘旭波 | B27: 522126199811241515 | C27: 2024071235 | D27: 6分43秒 | E27: 不合格 | F27: 24 | G27: 68 | J27: 186 | K27: 100 | L27: =K27+G27 -> 168 | M27: 24
A28: 唐攀 | B28: 522126200004250015 | C28: 2024071233 | D28: 弃考 | F28: 39 | G28: 98 | H28: 34 | I28: 68 | K28: 弃考 | L28: 166 | M28: 25
A29: 吴卫 | B29: 522126199603110035 | C29: 2024071238 | D29: 7分04秒 | E29: 不合格 | F29: 34 | G29: 88 | J29: 135 | K29: 75 | L29: =K29+G29 -> 163 | M29: 26
A30: 肖桂桂 | B30: 522126200208213013 | C30: 2024071236 | D30: 弃考 | F30: 39 | G30: 98 | H30: 32 | I30: 64 | L30: 162 | M30: 27
A31: 蔡芳野 | B31: 522126199010040019 | C31: 2024071203 | D31: 7分10秒 | E31: 不合格 | F31: 39 | G31: 98 | J31: 123 | K31: 63 | L31: =G31+K31 -> 161 | M31: 28
A32: 邹启蒙 | B32: 522126200207166016 | C32: 2024071247 | D32: 6分54秒 | E32: 不合格 | F32: 30 | G32: 80 | H32: 33 | I32: 66 | L32: =I32+G32 -> 146 | M32: 29
A33: 申进康 | B33: 522126199912080036 | C33: 2024071245 | D33: 弃考 | F33: 25 | G33: 70 | H33: 37 | I33: 74 | L33: =I33+G33 -> 144 | M33: 30
A34: 韦肖云 | B34: 522126199808110119 | C34: 2024071241 | D34: 弃考 | F34: 31 | G34: 82 | H34: 30 | I34: 60 | L34: =E34+G34+I34+K34 -> 142 | M34: 31
A35: 唐志 | B35: 522123199511018012 | C35: 2024071210 | D35: 7分19秒 | E35: 不合格 | F35: 35 | G35: 90 | H35: 27 | I35: 不合格 | L35: =G35 -> 90 | M35: 32
A36: 冉光辉 | B36: 522126199703236516 | C36: 2024071250 | D36: 弃考 | H36: 40 | I36: 80 | J36: 112 | K36: 不合格 | L36: =I36 -> 80 | M36: 33
A37: 唐坤 | B37: 522126199711100096 | C37: 2024071240 | D37: 7分34秒 | E37: 不合格 | F37: 28 | G37: 76 | H37: 25 | I37: 不合格 | L37: 76 | M37: 34
A38: 闵友 | B38: 522126199310245091 | C38: 2024071218 | D38: 8分33秒 | E38: 不合格 | F38: 25 | G38: 70 | J38: 98 | K38: 不合格 | L38: 70 | M38: 35
A39: 田吉林 | B39: 522126200108127513 | C39: 2024071206 | D39: 7分28秒 | E39: 不合格 | F39: 24 | G39: 68 | H39: 22 | I39: 不合格 | L39: 68 | M39: 36
A40: 谢旭勤 | B40: 522126199304100013 | C40: 2024071221 | D40: 7分53秒 | E40: 不合格 | F40: 7 | G40: 不合格 | H40: 23 | I40: 不合格 | L40: 0 | M40: 37
A41: 申浪 | B41: 522126200109210212 | C41: 2024071243 | D41: 8分15秒 | E41: 不合格 | F41: 18 | G41: 不合格 | H41: 27 | I41: 不合格 | L41: 0 | M41: 38
